bitfinex/quotes_BTCUSD_20250403
["timestamp","ask_amount","ask_price","bid_price","bid_amount"]
[1743712885024,0.254,81959.0,81958.0,0.54998738]
[1743712885966,0.254,81959.0,81958.0,0.56220238]
[1743712886615,0.254,81959.0,81958.0,0.43929941]
[1743712886818,0.254,81959.0,81958.0,0.02985056]
[1743712886819,0.266201,81959.0,81958.0,0.02985056]
[1743712887133,0.510225,81959.0,81958.0,0.02213789]
[1743712887844,0.510225,81959.0,81958.0,0.01603168]
[1743712888456,0.510225,81959.0,81958.0,0.02370042]
[1743712889151,0.510225,81959.0,81958.0,0.01148542]
[1743712892160,0.510225,81959.0,81958.0,0.00381668]
[1743712893099,0.510225,81959.0,81958.0,0.01145622]
[1743712893258,0.510225,81959.0,81958.0,0.00381668]
[1743712894697,0.27235377,81959.0,81958.0,0.00381668]
[1743712898544,0.27235377,81959.0,81958.0,0.01145654]
[1743712898656,0.27235377,81959.0,81958.0,0.00381668]
[1743712898864,0.27235377,81959.0,81958.0,0.01145654]
[1743712900969,0.01612877,81959.0,81958.0,0.01145654]
[1743712901169,0.26015277,81959.0,81958.0,0.01145654]
[1743712901901,0.26015277,81959.0,81958.0,0.02366556]
[1743712902685,0.01612877,81959.0,81958.0,0.26769256]
[1743712902859,0.01612877,81959.0,81958.0,0.27989356]
[1743712903758,0.01612877,81959.0,81958.0,0.28599807]
[1743712908144,0.21639885,81962.0,81958.0,0.28599807]
[1743712908364,0.244018,81961.0,81958.0,0.28599807]
[1743712908509,0.27,81961.0,81959.0,0.244023]
[1743712908934,0.27,81961.0,81960.0,0.00762329]
[1743712909889,0.27,81961.0,81960.0,0.01983231]
[1743712910437,0.27,81961.0,81960.0,0.0297535]
[1743712911948,0.27,81961.0,81960.0,0.2737745]
[1743712912134,0.27,81961.0,81960.0,0.2859755]
[1743712914744,0.27,81961.0,81960.0,0.30051635]
[1743712916708,0.27,81961.0,81960.0,0.35021635]
[1743712916912,0.04086054,81961.0,81960.0,0.35021635]
[1743712921580,0.04086054,81961.0,81960.0,0.43907635]
[1743712923130,0.04086054,81961.0,81960.0,0.56197932]
[1743712937352,0.04086054,81961.0,81960.0,0.99807932]
[1743712939610,0.04086054,81961.0,81960.0,0.99893856]
[1743712940830,0.04086054,81961.0,81960.0,0.99889856]
[1743712941940,0.04086054,81961.0,81960.0,2.05325856]
[1743712943858,0.02632407,81961.0,81960.0,2.05325856]
[1743712944059,0.35,81990.0,81988.0,0.256134]
[1743712944213,0.244,81989.0,81988.0,0.53209782]
[1743712944416,0.244,81989.0,81988.0,0.53949819]
[1743712944959,0.244,81989.0,81988.0,0.55170721]
[1743712945098,0.244,81989.0,81988.0,0.56080599]
[1743712946362,0.244,81989.0,81988.0,0.57072718]
[1743712947606,0.244,81989.0,81988.0,0.96022718]
[1743712947816,0.244,81989.0,81988.0,1.00812718]
[1743712949683,0.244,81989.0,81988.0,0.86960718]
[1743712949938,0.244,81989.0,81988.0,1.00808718]
[1743712955414,0.244,81989.0,81988.0,1.00980024]
[1743712956804,0.244,81989.0,81988.0,1.00808718]
[1743712957375,0.244,81989.0,81988.0,2.06208718]
[1743712960227,0.244,81989.0,81988.0,2.01258718]
[1743712962222,0.244,81989.0,81988.0,1.87410718]
[1743712962363,0.244,81989.0,81988.0,2.01254718]
[1743712962759,0.244,81989.0,81988.0,2.01425444]
[1743712963952,0.244,81989.0,81988.0,2.01254718]
[1743712967529,0.244,81989.0,81988.0,2.06084718]
[1743712968162,0.244,81989.0,81988.0,2.06170815]
[1743712968983,0.244,81989.0,81988.0,2.06084718]
[1743712978508,0.244,81989.0,81988.0,2.09892616]
[1743712983969,0.244,81989.0,81988.0,2.20836436]
[1743712986861,0.244,81989.0,81988.0,2.09892616]
[1743712987840,0.0458,82012.0,81999.0,0.5961]
[1743712988060,0.24009337,82000.0,81999.0,0.73354382]
[1743712988266,0.24009337,82000.0,81999.0,0.7403323]
[1743712988832,0.24009337,82000.0,81999.0,0.75254132]
[1743712990999,0.24009337,82000.0,81999.0,0.76246251]
[1743712993092,3.7e-07,82000.0,81999.0,0.76246251]
[1743712993267,0.004,82019.0,82018.0,0.25604]
[1743712993477,0.234,82019.0,82018.0,0.53184382]
[1743712993684,0.234,82019.0,82018.0,0.53849242]
[1743712993882,0.234,82019.0,82018.0,0.87849242]
[1743712994738,0.234,82019.0,82018.0,0.88841361]
[1743712994942,0.234,82019.0,82018.0,0.90965937]
[1743712996104,0.0452,82043.0,82042.0,0.255965]
[1743712996274,0.2952,82043.0,82042.0,0.53172882]
[1743712996476,0.2952,82043.0,82042.0,0.53813024]
[1743712996650,0.25,82043.0,82042.0,0.53813024]
[1743712997683,0.03324528,82044.0,82043.0,0.27050285]
[1743712998015,0.30324528,82044.0,82043.0,0.39980705]
[1743712999672,0.30324528,82044.0,82043.0,0.40362373]
[1743712999872,0.54701628,82044.0,82043.0,0.16074693]
[1743713000070,0.30324528,82044.0,82043.0,0.16074693]
[1743713000568,0.30324528,82044.0,82043.0,0.41906178]
[1743713000804,0.30324528,82044.0,82043.0,0.43124978]
[1743713001727,0.27,82044.0,82043.0,0.56331013]
[1743713006645,0.27,82044.0,82043.0,0.90331013]
[1743713007248,0.27,82044.0,82043.0,0.95301013]
[1743713007914,0.27,82044.0,82043.0,0.95801013]
[1743713008378,0.27,82044.0,82043.0,0.96411464]
[1743713008576,0.27,82044.0,82043.0,0.96582117]
[1743713009990,0.27,82044.0,82043.0,0.96411464]
[1743713010870,0.004,82049.0,82048.0,0.595946]
[1743713011072,0.284,82049.0,82048.0,1.78670982]
[1743713011223,0.284,82049.0,82048.0,1.79342352]
[1743713012350,0.284,82049.0,82048.0,1.80334471]
[1743713012710,0.284,82049.0,82048.0,1.81555373]
[1743713015858,5.8e-07,82050.0,82049.0,0.70918385]
[1743713016089,5.8e-07,82050.0,82049.0,0.83208682]
[1743713016314,5.8e-07,82050.0,82049.0,0.83879846]
[1743713016999,5.8e-07,82050.0,82049.0,0.84871965]
[1743713017553,5.8e-07,82050.0,82049.0,0.86092867]
[1743713019077,5.8e-07,82050.0,82049.0,0.8626352]
[1743713020486,5.8e-07,82050.0,82049.0,0.86092867]
[1743713020709,5.8e-07,82050.0,82049.0,1.55062867]
[1743713023188,0.4835,82079.0,82078.0,0.24367]
[1743713023385,0.2935,82079.0,82078.0,1.57235382]
[1743713023594,0.2935,82079.0,82078.0,1.57880504]
[1743713024602,0.2935,82079.0,82078.0,1.59098804]
[1743713025621,0.2935,82079.0,82078.0,1.61311825]
[1743713026484,0.2935,82079.0,82078.0,1.62234635]
[1743713029849,0.244,82079.0,82078.0,1.62234635]
[1743713032388,0.0478,82084.0,82083.0,0.255837]
[1743713032632,0.3278,82084.0,82083.0,0.255837]
[1743713032882,0.28,82084.0,82083.0,0.39954233]
[1743713033783,0.28,82084.0,82083.0,0.40946352]
[1743713034239,0.28,82084.0,82083.0,0.42167254]
[1743713042998,0.28,82084.0,82083.0,0.16655172]
[1743713043496,0.28,82084.0,82083.0,0.43692957]
[1743713045745,0.28,82084.0,82083.0,0.18109257]
[1743713046041,0.06290672,82084.0,82083.0,0.18109257]
[1743713046297,0.06290672,82084.0,82083.0,0.55983254]
[1743713047053,0.06290672,82084.0,82083.0,0.89983254]
[1743713047543,0.06290672,82084.0,82083.0,1.95267254]
[1743713049688,0.06290672,82084.0,82083.0,1.95263254]
[1743713051409,0.06290672,82084.0,82083.0,1.81451254]
[1743713051642,0.06290672,82084.0,82083.0,1.95263254]
[1743713052815,0.06290672,82084.0,82083.0,1.81451254]
[1743713053052,0.06290672,82084.0,82083.0,1.95263254]
[1743713053751,0.06290672,82084.0,82083.0,1.81451254]
[1743713053988,0.06290672,82084.0,82083.0,1.95263254]
[1743713055459,7.2e-07,82084.0,82083.0,2.00083254]
[1743713057370,0.0011578,82100.0,82099.0,0.255788]
[1743713057645,0.2811578,82100.0,82099.0,0.53135182]
[1743713057879,0.2811578,82100.0,82099.0,0.53675764]
[1743713058358,0.2811578,82100.0,82099.0,0.54896666]
[1743713059082,0.2811578,82100.0,82099.0,0.55888785]
[1743713059283,0.2811578,82100.0,82099.0,0.56814109]
[1743713062980,0.2811578,82100.0,82099.0,0.56810109]
[1743713065251,0.2811578,82100.0,82099.0,0.43301812]
[1743713065442,0.2811578,82100.0,82099.0,0.44519812]
[1743713065848,0.2811578,82100.0,82099.0,0.43909361]
[1743713067470,0.2811578,82100.0,82099.0,0.44519812]
[1743713071606,0.2811578,82100.0,82099.0,0.30711812]
[1743713071977,0.2811578,82100.0,82099.0,0.44519812]
[1743713077243,0.2811578,82100.0,82099.0,0.56810109]
[1743713080033,0.2811578,82100.0,82099.0,0.43002109]
[1743713080214,0.2811578,82100.0,82099.0,0.56810109]
[1743713085528,0.28255862,82110.0,82105.0,0.243587]
[1743713085774,0.53255862,82110.0,82105.0,0.243587]
[1743713085965,0.53255862,82110.0,82106.0,0.00532479]
[1743713086175,0.243579,82109.0,82106.0,0.00532479]
[1743713086332,0.523578,82109.0,82106.0,0.00532479]
[1743713087257,0.23536086,82109.0,82107.0,0.00992119]
[1743713087581,0.31536086,82109.0,82108.0,0.00532441]
[1743713088727,0.31536086,82109.0,82108.0,0.02745462]
[1743713089700,0.08,82109.0,82108.0,0.02745462]
[1743713090252,0.08,82109.0,82108.0,0.27103562]
[1743713090908,0.08,82109.0,82108.0,0.28321462]
[1743713091306,0.08,82109.0,82108.0,0.27103562]
[1743713091974,0.26,82109.0,82108.0,0.27103562]
[1743713093599,0.26,82109.0,82108.0,0.02745462]
[1743713093804,0.503578,82109.0,82108.0,0.02745462]
[1743713094203,0.26,82109.0,82108.0,0.02213021]
[1743713094410,0.26,82109.0,82108.0,0.02742515]
[1743713095318,0.26,82109.0,82108.0,0.27100615]
[1743713096210,0.26,82109.0,82108.0,0.02742515]
[1743713096403,0.26,82109.0,82108.0,0.27100615]
[1743713098602,0.26,82109.0,82108.0,0.02742515]
[1743713098814,0.26,82109.0,82108.0,0.27100615]
[1743713099449,0.26,82109.0,82108.0,0.28318515]
[1743713099649,0.26,82109.0,82108.0,0.27100615]
[1743713100442,0.26,82109.0,82108.0,0.28318515]
[1743713100685,0.26,82109.0,82108.0,0.297726]
[1743713101649,0.26,82109.0,82108.0,0.42062897]
[1743713102146,0.26,82109.0,82108.0,0.76062897]
[1743713103896,0.26,82109.0,82108.0,0.89866897]
[1743713104936,0.26,82109.0,82108.0,0.76062897]
[1743713105134,0.26,82109.0,82108.0,0.89866897]
[1743713107923,0.26,82109.0,82108.0,1.00789251]
[1743713110535,0.26,82109.0,82108.0,0.89866897]
[1743713111894,0.26,82109.0,82108.0,0.76062897]
[1743713112190,0.26,82109.0,82108.0,0.89862897]
[1743713115139,0.26,82109.0,82108.0,0.94622897]
[1743713124476,0.26,82109.0,82108.0,0.99462897]
[1743713128687,6e-08,82121.0,82120.0,0.70596385]
[1743713128870,0.26000006,82121.0,82120.0,0.82886682]
[1743713129068,0.26000006,82121.0,82120.0,0.83385642]
[1743713129675,0.26000006,82121.0,82120.0,0.84606544]
[1743713130599,0.26000006,82121.0,82120.0,0.85827058]
[1743713130804,0.26000006,82121.0,82120.0,0.86819177]
[1743713133602,0.26000006,82121.0,82120.0,0.87738217]
[1743713136814,0.26000006,82121.0,82120.0,1.01534217]
[1743713137201,0.26000006,82121.0,82120.0,0.87738217]
[1743713137442,0.26000006,82121.0,82120.0,1.01534217]
[1743713138666,0.26000006,82121.0,82120.0,2.06758217]
[1743713142416,0.26000006,82121.0,82120.0,2.17644898]
[1743713143294,0.26000006,82121.0,82120.0,2.17034447]
[1743713146976,0.26000006,82121.0,82120.0,2.06147766]
[1743713147710,0.26000006,82121.0,82120.0,2.06909081]
[1743713152924,0.26000006,82121.0,82120.0,2.01919081]
[1743713154323,0.26000006,82121.0,82120.0,1.88123081]
[1743713154617,0.26000006,82121.0,82120.0,2.01915081]
[1743713157393,0.26000006,82121.0,82120.0,2.10210545]
[1743713161204,0.004,82139.0,82126.0,0.595704]
[1743713161505,0.24008,82127.0,82126.0,0.73314782]
[1743713161665,0.24008,82127.0,82126.0,0.73787611]
[1743713162293,0.004,82139.0,82138.0,0.255666]
[1743713162492,0.244138,82139.0,82138.0,0.53098982]
[1743713162666,0.244138,82139.0,82138.0,0.53572123]
[1743713162874,0.244138,82139.0,82138.0,1.58788123]
[1743713163068,0.244138,82139.0,82138.0,1.92788123]
[1743713163669,1e-06,82139.0,82138.0,1.92788123]
[1743713164052,1e-06,82139.0,82138.0,1.9477034]
[1743713164283,1e-06,82139.0,82138.0,1.99882008]
[1743713165268,1e-06,82139.0,82138.0,2.05352008]
[1743713165857,1e-06,82139.0,82138.0,2.04878867]
[1743713166477,0.37,82168.0,82167.0,0.255576]
[1743713166648,0.004,82169.0,82168.0,0.02671085]
[1743713166853,0.27413798,82169.0,82168.0,0.14961382]
[1743713167054,0.27413798,82169.0,82168.0,0.39301682]
[1743713167516,0.27413798,82169.0,82168.0,0.73301682]
[1743713167628,0.27413798,82169.0,82168.0,0.63407297]
[1743713167826,0.27413798,82169.0,82168.0,0.65389514]
[1743713168051,0.27413798,82169.0,82168.0,0.62864019]
[1743713168250,0.27413798,82169.0,82168.0,0.6332407]
[1743713168657,0.27413798,82169.0,82168.0,0.62864019]
[1743713169651,0.27413798,82169.0,82168.0,0.64318104]
[1743713170076,0.27413798,82169.0,82168.0,0.63936436]
[1743713170369,0.27413798,82169.0,82168.0,0.64872205]
[1743713170595,0.017427,82174.0,82173.0,0.595557]
[1743713170769,0.257427,82174.0,82173.0,0.73300082]
[1743713171887,0.257427,82174.0,82173.0,0.75282299]
[1743713174120,0.25737388,82174.0,82173.0,0.75282299]
[1743713177047,0.004,82199.0,82198.0,0.255479]
[1743713177285,0.004,82199.0,82198.0,0.40785985]
[1743713177286,0.28445983,82199.0,82198.0,0.40785985]
[1743713177927,0.28445983,82199.0,82198.0,0.53076282]
[1743713179018,0.28445983,82199.0,82198.0,0.53837597]
[1743713180085,0.28445983,82199.0,82198.0,0.55974334]
[1743713180484,0.07256012,82199.0,82198.0,0.55974334]
[1743713181748,0.07256012,82199.0,82198.0,0.54520249]
[1743713182074,0.07256012,82199.0,82198.0,0.40736249]
[1743713182286,0.07256012,82199.0,82198.0,0.57191236]
[1743713185321,0.07256012,82199.0,82198.0,0.16648085]
[1743713185524,0.07256012,82199.0,82198.0,0.17885538]
[1743713185724,0.12156012,82199.0,82198.0,0.17885538]
[1743713186026,0.12156012,82199.0,82198.0,0.43433438]
[1743713186273,0.12156012,82199.0,82198.0,0.42216938]
[1743713187044,0.12156012,82199.0,82198.0,0.17885538]
[1743713189286,0.12156012,82199.0,82198.0,0.8996132]
[1743713189287,0.07256012,82199.0,82198.0,0.8996132]
[1743713189450,0.07256012,82199.0,82198.0,0.9117782]
[1743713194318,0.07256012,82199.0,82198.0,0.91244959]
[1743713194524,0.07256012,82199.0,82198.0,0.91240959]
[1743713195871,0.07256012,82199.0,82198.0,0.89719735]
[1743713196074,0.07256012,82199.0,82198.0,0.9117382]
[1743713199172,0.07256012,82199.0,82198.0,0.92695078]
[1743713204840,0.07256012,82199.0,82198.0,0.65174696]
[1743713205050,0.07256012,82199.0,82198.0,0.77734196]
[1743713205253,0.07256012,82199.0,82198.0,0.78950696]
[1743713205912,0.07256012,82199.0,82198.0,0.91240993]
[1743713206112,0.07256012,82199.0,82198.0,0.92695078]
[1743713206309,0.07256012,82199.0,82198.0,0.78919078]
[1743713206465,0.07256012,82199.0,82198.0,0.92691078]
[1743713212075,0.07256012,82199.0,82198.0,0.78919078]
[1743713212281,0.07256012,82199.0,82198.0,0.92691078]
[1743713212898,0.06333758,82213.0,82208.0,0.243284]
[1743713213053,0.33347545,82213.0,82207.0,0.243285]
[1743713213255,0.243273,82212.0,82207.0,0.243285]
[1743713213478,0.25,82212.0,82208.0,0.243285]
[1743713213880,0.25,82212.0,82208.0,0.27831975]
[1743713214775,0.25,82212.0,82208.0,0.38673389]
[1743713215387,0.25,82212.0,82209.0,0.03503475]
[1743713216866,0.243276,82211.0,82210.0,0.03503475]
[1743713217040,0.473276,82211.0,82210.0,0.03503475]
[1743713218403,0.521676,82211.0,82210.0,0.03503475]
[1743713218720,0.521676,82211.0,82210.0,0.17275475]
[1743713218721,0.533839,82211.0,82210.0,0.17275475]
[1743713219560,0.521676,82211.0,82210.0,0.17275475]
[1743713219770,0.521676,82211.0,82210.0,0.15754217]
[1743713221490,0.533839,82211.0,82210.0,0.15754217]
[1743713221695,0.579039,82211.0,82210.0,0.01982217]
[1743713222283,0.70194197,82211.0,82210.0,0.01982217]
[1743713222482,0.331276,82199.0,82198.0,0.10841414]
[1743713222694,0.581276,82199.0,82198.0,0.10841414]
[1743713223566,0.255486,82196.0,82195.0,0.10841414]
[1743713223766,0.525486,82196.0,82195.0,0.10841414]
[1743713224400,0.27,82196.0,82195.0,0.10841414]
[1743713225000,0.27,82196.0,82195.0,0.35173714]
[1743713225204,0.27,82196.0,82195.0,0.36390314]
[1743713225617,0.27,82196.0,82195.0,0.255489]
[1743713226494,0.255517,82187.0,82180.0,0.10841414]
[1743713226651,0.25,82187.0,82184.0,0.13776]
[1743713226814,0.25,82187.0,82186.0,0.243349]
[1743713227630,0.25,82187.0,82185.0,0.381111]
[1743713228007,0.25,82187.0,82186.0,0.24335]
[1743713228229,0.25,82187.0,82186.0,0.38111]
[1743713228425,0.25,82187.0,82186.0,0.393277]
[1743713230844,0.25,82187.0,82186.0,0.13776]
[1743713231422,0.25,82187.0,82186.0,0.38111]
[1743713231623,0.25,82187.0,82186.0,0.393277]
[1743713233210,0.25,82187.0,82186.0,0.40545057]
[1743713237931,0.25,82187.0,82186.0,0.01217357]
[1743713237932,0.493347,82187.0,82186.0,0.01217357]
[1743713238043,0.552114,82187.0,82186.0,0.01217357]
[1743713238245,0.598714,82187.0,82186.0,0.01217357]
[1743713239266,0.255517,82186.0,82185.0,0.00045983]
[1743713239480,0.485517,82186.0,82185.0,0.00045983]
[1743713240885,0.47335,82186.0,82185.0,0.00045983]
[1743713242105,0.485517,82186.0,82185.0,0.00045983]
[1743713248183,0.485517,82186.0,82185.0,0.0126334]
[1743713251121,0.485517,82186.0,82185.0,0.1503934]
[1743713252795,0.485517,82186.0,82185.0,0.0126334]
[1743713253013,0.485517,82186.0,82185.0,0.1503934]
[1743713254316,0.485517,82186.0,82185.0,0.15419801]
[1743713255893,0.485517,82186.0,82185.0,0.1503934]
[1743713257724,0.485517,82186.0,82185.0,0.0126334]
[1743713263864,2.98701947,82186.0,82185.0,4e-07]
[1743713264080,0.595573,82168.0,82167.0,0.10841414]
[1743713264285,0.595573,82168.0,82167.0,1.4e-07]
[1743713264286,1.02997597,82168.0,82167.0,1.4e-07]
[1743713264464,1.12787365,82168.0,82167.0,1.4e-07]
[1743713265264,1.12787365,82168.0,82143.0,0.13776]
[1743713265265,0.243474,82144.0,82143.0,0.13776]
[1743713265607,0.483474,82144.0,82143.0,0.13789798]
[1743713266535,0.24,82144.0,82143.0,0.13789798]
[1743713267111,0.483474,82144.0,82143.0,0.13789798]
[1743713271263,0.25141991,82144.0,82143.0,0.13789798]
[1743713273292,0.25141991,82144.0,82143.0,0.14251478]
[1743713273815,0.00794591,82144.0,82143.0,0.14251478]
[1743713274484,0.00794591,82144.0,82143.0,0.52106775]
[1743713276187,0.00794591,82144.0,82143.0,0.56736775]
[1743713279496,0.00794591,82144.0,82143.0,0.9219086]
[1743713279726,0.00794591,82144.0,82143.0,0.9704086]
[1743713280496,0.00794591,82144.0,82143.0,0.9704486]
[1743713281265,0.00794591,82144.0,82143.0,0.8326486]
[1743713281441,0.00794591,82144.0,82143.0,0.9704486]
[1743713282172,0.00794591,82144.0,82143.0,0.98262865]
[1743713289445,0.00794591,82144.0,82143.0,0.84482865]
[1743713289618,0.00794591,82144.0,82143.0,0.98262865]
[1743713291263,0.00794591,82144.0,82143.0,0.84482865]
[1743713291494,0.00794591,82144.0,82143.0,0.98262865]
[1743713293639,0.00794591,82144.0,82143.0,0.84482865]
[1743713293812,0.00794591,82144.0,82143.0,0.98262865]
[1743713303347,0.00794591,82144.0,82143.0,2.03446865]
[1743713307660,0.00794591,82144.0,82143.0,2.07230199]
[1743713314175,0.41,82173.0,82171.0,0.243393]
[1743713314378,0.27,82173.0,82172.0,0.13776]
[1743713314634,0.27,82173.0,82172.0,0.14256448]
[1743713314966,0.27,82173.0,82172.0,0.38595548]
[1743713315093,0.513388,82173.0,82172.0,0.14256448]
[1743713315907,0.513388,82173.0,82172.0,0.15854941]
[1743713316282,0.27,82173.0,82172.0,0.15854941]
[1743713316604,0.27,82173.0,82172.0,0.40194041]
[1743713317597,0.27,82173.0,82172.0,0.53701238]
[1743713317809,0.27,82173.0,82172.0,0.55155323]
[1743713318796,0.27,82173.0,82172.0,0.89155323]
[1743713319570,0.27,82173.0,82172.0,0.75379323]
[1743713319773,0.27,82173.0,82172.0,0.89155323]
[1743713320505,0.27,82173.0,82172.0,0.64516604]
[1743713320639,0.27,82173.0,82172.0,0.63062519]
[1743713321002,0.27,82173.0,82172.0,0.88138071]
[1743713322833,0.27,82173.0,82172.0,0.89592156]
[1743713323956,0.24336,82183.0,82179.0,0.243369]
[1743713324171,0.24336,82183.0,82178.0,0.243373]
[1743713324172,0.243364,82182.0,82178.0,0.243373]
[1743713324371,0.483364,82182.0,82179.0,0.24337]
[1743713324603,0.483364,82182.0,82180.0,0.243368]
[1743713324813,0.24,82182.0,82180.0,0.243368]
[1743713325997,0.24,82182.0,82181.0,0.01598493]
[1743713326205,0.24,82182.0,82181.0,0.25934993]
[1743713327429,0.24,82182.0,82181.0,0.01598493]
[1743713327835,0.24,82182.0,82181.0,0.25934993]
[1743713328338,0.24,82182.0,82181.0,0.27151793]
[1743713328895,0.24,82182.0,82181.0,0.25934993]
[1743713330303,0.24,82182.0,82181.0,0.27151793]
[1743713334585,0.02626441,82182.0,82181.0,0.27151793]
[1743713337798,0.243346,82189.0,82184.0,0.243353]
[1743713338003,0.243346,82188.0,82185.0,0.243352]
[1743713338271,0.503346,82188.0,82186.0,0.1386]
[1743713338615,0.26,82188.0,82186.0,0.1386]
[1743713338817,0.26,82188.0,82186.0,0.381949]
[1743713339243,0.26,82188.0,82186.0,0.1386]
[1743713339605,0.503345,82188.0,82186.0,0.1386]
[1743713339863,0.503345,82188.0,82187.0,0.00380488]
[1743713340266,0.503344,82188.0,82187.0,0.01598493]
[1743713340468,0.3211924,82188.0,82187.0,0.01598493]
[1743713341071,0.3211924,82188.0,82187.0,0.15450493]
[1743713341287,0.3786594,82188.0,82187.0,0.15450493]
[1743713343002,0.3786594,82188.0,82187.0,0.15442493]
[1743713348173,0.3211924,82188.0,82187.0,0.15442493]
[1743713348753,0.0778484,82188.0,82187.0,0.40993893]
[1743713348953,0.0778484,82188.0,82187.0,0.15442493]
[1743713349154,0.3211924,82188.0,82187.0,0.15442493]
[1743713349516,0.0778484,82188.0,82187.0,0.40993893]
[1743713350771,0.0778484,82188.0,82187.0,0.5809419]
[1743713351048,0.0778484,82188.0,82187.0,0.59548275]
[1743713351348,0.0778484,82188.0,82187.0,0.93548275]
[1743713351488,0.0778484,82188.0,82187.0,0.98198275]
[1743713353278,0.0778484,82188.0,82187.0,1.01981179]
[1743713353438,0.0778484,82188.0,82187.0,0.98198275]
[1743713353634,0.0778484,82188.0,82187.0,1.01979228]
[1743713354527,0.0778484,82188.0,82187.0,0.98806783]
[1743713354730,0.0778484,82188.0,82187.0,1.02585757]
[1743713355147,0.0778484,82188.0,82187.0,0.98806783]
[1743713365578,0.0778484,82188.0,82187.0,2.03934783]
[1743713368417,0.0778484,82188.0,82187.0,1.90090783]
[1743713368696,0.0778484,82188.0,82187.0,2.04042783]
[1743713369666,0.09187268,82211.0,82207.0,0.243285]
[1743713369901,0.3223328,82211.0,82208.0,0.13944]
[1743713370625,0.3223328,82211.0,82208.0,0.382724]
[1743713370824,0.3223328,82211.0,82209.0,0.01218005]
[1743713371984,0.47373612,82211.0,82210.0,0.01598493]
[1743713372360,0.23046012,82211.0,82210.0,0.27142693]
[1743713373930,0.23046012,82211.0,82210.0,0.32092693]
[1743713374123,0.23046012,82211.0,82210.0,0.4438299]
[1743713374866,0.23046012,82211.0,82210.0,0.45273206]
[1743713376983,0.23046012,82211.0,82210.0,0.80727291]
[1743713378801,0.23046012,82211.0,82210.0,0.79273206]
[1743713379001,0.23046012,82211.0,82210.0,0.93217206]
[1743713379584,0.23046012,82211.0,82210.0,0.79273206]
[1743713379781,0.23046012,82211.0,82210.0,0.93209206]
[1743713380511,0.23046012,82211.0,82210.0,0.79273206]
[1743713380707,0.23046012,82211.0,82210.0,0.93209206]
[1743713393579,0.23046012,82211.0,82210.0,1.04068264]
[1743713393776,0.23046012,82211.0,82210.0,1.05522349]
[1743713395151,0.23046012,82211.0,82210.0,0.94663291]
[1743713396782,0.23046012,82211.0,82210.0,0.80727291]
[1743713396985,0.23046012,82211.0,82210.0,0.94671291]
[1743713397695,0.23046012,82211.0,82210.0,0.94756674]
[1743713398522,0.23046012,82211.0,82210.0,0.94760674]
[1743713399834,0.23046012,82211.0,82210.0,0.94675291]
[1743713401576,0.23046012,82211.0,82210.0,0.80727291]
[1743713401723,0.23046012,82211.0,82210.0,0.94667291]
[1743713408761,0.23046012,82211.0,82210.0,1.99767291]
[1743713414678,0.23046012,82211.0,82210.0,1.85827291]
[1743713414886,0.23046012,82211.0,82210.0,1.99723291]
[1743713415263,0.23046012,82211.0,82210.0,1.99719291]
[1743713415662,0.23046012,82211.0,82210.0,1.84373206]
[1743713416021,0.53169912,82211.0,82210.0,0.01598493]
[1743713416787,0.51953612,82211.0,82210.0,0.01598493]
[1743713418825,0.53169912,82211.0,82210.0,0.01598493]
[1743713420652,0.27626012,82211.0,82210.0,0.01598493]
[1743713420853,0.23046012,82211.0,82210.0,0.27142693]
[1743713421020,0.23046012,82211.0,82210.0,0.40702205]
[1743713424028,0.23046012,82211.0,82210.0,0.41082537]
[1743713424240,0.23046012,82211.0,82210.0,0.15538337]
[1743713425411,0.23046012,82211.0,82210.0,0.15514337]
[1743713425812,0.23046012,82211.0,82210.0,0.39842237]
[1743713427143,0.23046012,82211.0,82210.0,0.15514337]
[1743713429588,0.23046012,82211.0,82210.0,0.39842237]
[1743713429942,0.23046012,82211.0,82210.0,0.41058537]
[1743713431266,0.23046012,82211.0,82210.0,0.41026537]
[1743713431467,0.23046012,82211.0,82210.0,0.42100299]
[1743713431994,0.47373612,82211.0,82210.0,0.16556099]
[1743713432195,0.47373612,82211.0,82210.0,0.02672099]
[1743713432345,0.48589912,82211.0,82210.0,0.16568099]
[1743713432546,0.48589912,82211.0,82210.0,0.02672099]
[1743713432842,0.48589912,82211.0,82210.0,0.01598337]
[1743713432988,0.48589912,82211.0,82210.0,0.02642866]
[1743713433638,0.51579912,82211.0,82210.0,0.01598337]
[1743713433794,1.0520968,82211.0,82210.0,0.01598337]
[1743713433995,1.17499977,82211.0,82210.0,0.01598337]
[1743713434198,1.14999977,82211.0,82210.0,0.00380332]
[1743713434796,0.255471,82201.0,82200.0,0.1087793]
[1743713435012,0.535471,82201.0,82200.0,0.1087793]
[1743713435388,0.535471,82201.0,82200.0,0.11741869]
[1743713435743,0.535471,82201.0,82200.0,0.12959138]
[1743713437140,0.535471,82201.0,82200.0,0.02081208]
[1743713437456,0.535471,82201.0,82200.0,0.01217269]
[1743713439103,0.28,82201.0,82200.0,0.01217269]
[1743713439310,0.523306,82201.0,82200.0,0.02081208]
[1743713439516,0.535471,82201.0,82200.0,0.02081208]
[1743713440599,0.535471,82201.0,82200.0,0.01217269]
[1743713442319,0.255476,82199.0,82198.0,0.00380332]
[1743713442551,0.535476,82199.0,82198.0,0.00380332]
[1743713443130,0.255492,82194.0,82193.0,0.00380332]
[1743713443370,0.485492,82194.0,82193.0,0.00380332]
[1743713443560,0.485492,82194.0,82193.0,0.01253437]
[1743713446345,0.23,82194.0,82193.0,0.28020228]
[1743713448809,0.23,82194.0,82193.0,0.32850228]
[1743713450925,0.04034641,82194.0,82193.0,0.32850228]
[1743713452530,0.04034641,82194.0,82193.0,0.4659461]
[1743713454025,0.04034641,82194.0,82193.0,0.47501034]
[1743713455210,0.04034641,82194.0,82193.0,0.61377034]
[1743713455952,0.04034641,82194.0,82193.0,0.61467034]
[1743713459330,0.04034641,82194.0,82193.0,0.95467034]
[1743713459607,0.04034641,82194.0,82193.0,0.95086702]
[1743713460169,0.04034641,82194.0,82193.0,0.95467036]
[1743713463838,0.04034641,82194.0,82193.0,2.00599036]
[1743713464033,0.04034641,82194.0,82193.0,2.05409036]
[1743713464244,4.1e-07,82194.0,82193.0,2.05409036]
[1743713470053,0.00046012,82211.0,82210.0,0.304042]
[1743713470257,0.25046012,82211.0,82210.0,0.57473424]
[1743713470658,0.25046012,82211.0,82210.0,0.58690715]
[1743713471278,0.25046012,82211.0,82210.0,0.59597139]
[1743713471916,0.25046012,82211.0,82210.0,0.59977473]